bitfinex/quotes_ETHUSD_20250930
["timestamp","ask_amount","ask_price","bid_price","bid_amount"]
[1759238765209,2.39833416,4171.3,4171.2,17.4858]
[1759238765609,2.39833416,4171.3,4171.2,17.243]
[1759238767518,2.39833416,4171.3,4171.2,17.4858]
[1759238767945,2.39833416,4171.3,4171.2,17.243]
[1759238769153,0.001,4171.3,4171.2,17.243]
[1759238769330,0.001,4171.3,4171.2,17.9231]
[1759238770650,2.39833416,4171.3,4171.2,17.9231]
[1759238771653,2.39833416,4171.3,4171.2,17.4858]
[1759238772622,0.001,4171.3,4171.2,17.4858]
[1759238772835,0.001,4171.3,4171.2,17.9411]
[1759238773542,0.001,4171.3,4171.2,26.00962326]
[1759238778366,0.001,4171.3,4171.2,28.52701489]
[1759238780076,1.2889655,4174.7,4172.0,2.4]
[1759238780243,0.5152234,4175.0,4173.9,5.47041326]
[1759238780571,0.5152234,4175.0,4173.0,0.792]
[1759238780572,4.79532432,4174.8,4174.0,2.743]
[1759238780867,3.0965,4174.7,4174.1,14.5]
[1759238781045,2.4,4174.4,4174.1,14.5]
[1759238781259,2.39566863,4174.2,4174.1,14.5]
[1759238781449,3.09216863,4174.2,4174.1,14.5]
[1759238781637,3.69290783,4174.2,4174.1,14.5]
[1759238782845,3.09216863,4174.2,4174.1,14.5]
[1759238785179,0.2495,4174.2,4174.1,14.5]
[1759238785484,2.39562196,4174.3,4174.1,14.5]
[1759238785849,2.4,4174.4,4174.1,14.5]
[1759238786170,2.64505401,4174.4,4174.2,2.744]
[1759238786388,2.39561124,4174.3,4174.2,2.744]
[1759238787067,2.64506166,4174.4,4174.2,2.744]
[1759238787247,2.39556166,4174.4,4174.2,2.744]
[1759238787579,2.39556603,4174.4,4174.2,2.744]
[1759238787757,4.79549923,4174.5,4174.2,2.744]
[1759238788074,2.39549685,4174.5,4174.1,17.244]
[1759238788450,2.39555552,4174.4,4174.1,17.244]
[1759238788647,0.2495,4175.1,4174.2,1.5119]
[1759238788844,0.6965,4175.0,4174.3,2.746]
[1759238789048,2.39502403,4175.4,4174.3,2.746]
[1759238789049,2.3954864,4174.6,4174.4,14.5]
[1759238789271,2.64499646,4174.5,4174.4,14.5]
[1759238789579,6.14819611,4174.5,4173.1,0.2471]
[1759238789792,2.39613487,4173.4,4173.2,2.747]
[1759238789992,0.2495,4173.7,4173.3,0.12]
[1759238790191,2.39611231,4173.5,4173.4,14.5]
[1759238790496,3.09261231,4173.5,4173.4,14.5]
[1759238791660,2.39556738,4174.4,4173.4,14.5]
[1759238791661,0.2495,4174.7,4173.4,18.698]
[1759238791892,2.4,4174.4,4173.5,0.2471]
[1759238792094,2.39589079,4173.9,4173.6,2.752]
[1759238792389,2.3958993,4173.8,4173.7,0.2471]
[1759238792559,2.4,4174.4,4173.7,0.2471]
[1759238792759,2.39595562,4173.7,4173.6,2.752]
[1759238793208,2.39607044,4173.5,4173.4,14.5]
[1759238793520,2.39607044,4173.5,4173.4,17.252]
[1759238793907,2.39569507,4174.2,4173.4,16.24991]
[1759238794074,0.2495,4174.6,4173.5,3.4948607]
[1759238794261,2.6495,4174.6,4173.6,0.2471]
[1759238794589,2.6495,4174.6,4173.7,2.752]
[1759238794590,2.39589959,4173.8,4173.7,2.752]
[1759238794884,2.39589822,4173.8,4173.7,2.9991]
[1759238795091,2.39576281,4174.1,4173.7,17.4991]
[1759238795288,0.2495,4174.4,4173.7,17.4991]
[1759238795489,2.4,4174.3,4173.7,17.252]
[1759238795800,0.2495,4174.4,4173.8,0.2471]
[1759238796110,2.39584082,4173.9,4173.8,0.2471]
[1759238796396,2.4,4174.3,4173.8,0.2471]
[1759238796397,0.2495,4175.0,4173.8,0.7199]
[1759238796595,2.3956526,4174.3,4173.9,2.9991]
[1759238796896,2.39562263,4174.3,4174.0,0.2471]
[1759238797192,2.39557132,4174.4,4174.1,17.257]
[1759238797398,0.2495,4174.7,4174.1,17.257]
[1759238797597,2.3956407,4174.3,4174.1,17.257]
[1759238797809,2.39549697,4174.5,4174.2,1.79769]
[1759238798192,2.39549697,4174.5,4174.1,2.757]
[1759238798506,2.39549697,4174.5,4174.3,14.5]
[1759238798864,2.39555385,4174.4,4174.3,14.5]
[1759238799112,3.09205385,4174.4,4174.3,14.5]
[1759238799606,2.64505385,4174.4,4174.3,14.5]
[1759238800179,2.64605385,4174.4,4174.3,14.5]
[1759238800711,0.001,4174.4,4174.3,14.5]
[1759238801084,2.39655385,4174.4,4174.3,14.7471]
[1759238801903,0.001,4174.4,4174.3,15.2199]
[1759238802200,2.39655385,4174.4,4174.3,15.2199]
[1759238802413,2.39655385,4174.4,4174.3,14.5]
[1759238802770,2.63405385,4174.4,4174.3,14.5]
[1759238803800,3.08665385,4174.4,4174.3,14.5]
[1759238804181,2.39655385,4174.4,4174.3,14.5]
[1759238805388,0.001,4174.4,4174.3,14.5]
[1759238805723,2.39655385,4174.4,4174.3,16.50679]
[1759238805924,2.39655385,4174.4,4174.3,14.7449]
[1759238807324,2.39655385,4174.4,4174.3,14.5]
[1759238807821,3.08665385,4174.4,4174.3,14.5]
[1759238809299,2.63405385,4174.4,4174.3,14.5]
[1759238809721,2.39655385,4174.4,4174.3,14.5]
[1759238810095,3.08665385,4174.4,4174.3,14.5]
[1759238810423,2.63405385,4174.4,4174.3,14.5]
[1759238810594,2.39655385,4174.4,4174.3,14.5]
[1759238812025,0.001,4174.4,4174.3,14.5]
[1759238812324,0.001,4174.4,4174.3,14.7449]
[1759238812523,2.39655385,4174.4,4174.3,14.7449]
[1759238812988,0.001,4174.4,4174.3,14.7449]
[1759238813189,2.39655385,4174.4,4174.3,14.7449]
[1759238815527,2.39655385,4174.4,4174.3,0.2449]
[1759238815911,2.39655385,4174.4,4174.3,14.5]
[1759238816903,0.001,4174.4,4174.3,14.7449]
[1759238817423,0.001,4174.4,4174.3,15.1754]
[1759238817992,0.001,4174.4,4174.3,16.97994]
[1759238818297,0.001,4174.4,4174.3,17.09994]
[1759238824432,0.001,4174.4,4174.3,14.62]
[1759238824651,3.08665385,4174.4,4174.3,17.246]
[1759238825037,2.63405385,4174.4,4174.3,14.5]
[1759238825206,0.001,4174.4,4174.3,14.5]
[1759238826206,2.39655385,4174.4,4174.3,14.5]
[1759238826432,3.08665385,4174.4,4174.3,14.5]
[1759238827610,3.20665385,4174.4,4174.3,14.5]
[1759238828713,3.20665385,4174.4,4174.0,2.745]
[1759238828714,2.39572602,4174.1,4174.0,2.745]
[1759238829027,2.39578342,4174.0,4173.9,2.865]
[1759238829236,2.39578342,4174.0,4173.9,17.365]
[1759238829432,2.39575439,4174.1,4173.9,17.365]
[1759238829837,2.39568451,4174.2,4173.9,17.6099]
[1759238830157,0.121,4174.4,4174.0,0.26885783]
[1759238830310,0.001,4174.4,4174.1,3.4194]
[1759238830507,2.39655873,4174.4,4174.2,0.12]
[1759238830911,2.39561124,4174.3,4174.2,0.12]
[1759238831117,0.001,4174.4,4174.2,0.12]
[1759238831325,0.001,4174.4,4174.3,1.0369]
[1759238831530,0.001,4174.4,4174.3,3.7799]
[1759238831826,0.001,4174.4,4174.3,18.2799]
[1759238832142,0.001,4174.4,4174.3,17.4879]
[1759238832449,2.39655385,4174.4,4174.3,17.4879]
[1759238832624,0.001,4174.4,4174.3,17.4879]
[1759238833344,2.39655385,4174.4,4174.3,17.243]
[1759238834047,3.07105385,4174.4,4174.3,14.5]
[1759238836151,2.63155385,4174.4,4174.3,14.5]
[1759238836452,3.07105385,4174.4,4174.3,14.5]
[1759238836650,4.79565667,4174.3,4173.3,2.742]
[1759238836963,2.39601937,4173.6,4173.3,2.742]
[1759238837153,3.25852556,4174.1,4173.4,15.17966127]
[1759238837448,2.39578917,4174.0,4173.5,3.3987]
[1759238837746,5.13773324,4174.1,4173.6,0.2267]
[1759238837947,5.13770844,4174.2,4173.7,0.6557]
[1759238838146,2.742,4174.2,4173.8,15.1557]
[1759238838338,5.13769522,4174.2,4173.8,14.929]
[1759238838537,5.13769522,4174.2,4173.9,0.2267]
[1759238838746,2.91308721,4174.4,4174.0,3.3977]
[1759238838945,2.91308721,4174.4,4174.1,0.6557]
[1759238838946,0.001,4174.4,4174.1,0.6557]
[1759238839151,0.001,4174.4,4174.2,0.6557]
[1759238839354,0.001,4174.4,4174.2,3.3977]
[1759238839558,0.001,4174.4,4174.3,0.2267]
[1759238840746,0.001,4174.4,4174.3,14.7267]
[1759238841238,0.001,4174.4,4174.3,15.1557]
[1759238841434,0.001,4174.4,4174.3,14.8467]
[1759238842244,2.39655385,4174.4,4174.3,14.62]
[1759238843258,0.001,4174.4,4174.3,14.62]
[1759238843462,0.001,4174.4,4174.3,14.8467]
[1759238843831,2.39655385,4174.4,4174.3,14.62]
[1759238844769,2.62935385,4174.4,4174.3,14.62]
[1759238845131,2.39655385,4174.4,4174.3,14.62]
[1759238845343,2.62935385,4174.4,4174.3,14.5]
[1759238845638,2.39655385,4174.4,4174.3,14.5]
[1759238846028,3.09855385,4174.4,4174.3,14.5]
[1759238846241,2.62935385,4174.4,4174.3,14.5]
[1759238846671,2.39655385,4174.4,4174.3,14.5]
[1759238849481,3.09855385,4174.4,4174.3,14.5]
[1759238852092,2.39655385,4174.4,4174.3,14.5]
[1759238852588,2.39655385,4174.4,4174.1,2.9687]
[1759238852785,2.39561579,4174.3,4174.1,2.742]
[1759238852951,2.39561579,4174.3,4174.2,14.7267]
[1759238857668,3.09761579,4174.3,4174.2,14.5]
[1759238858395,2.62841579,4174.3,4174.2,14.5]
[1759238858573,2.39561579,4174.3,4174.2,14.5]
[1759238860289,3.28290719,4174.3,4174.2,14.5]
[1759238860499,7.24370124,4174.3,4174.2,14.5]
[1759238860861,6.77450124,4174.3,4174.2,14.5]
[1759238861096,5.88720984,4174.3,4174.2,14.5]
[1759238861318,6.35640984,4174.3,4174.2,14.5]
[1759238861891,8.75640984,4174.3,4174.2,14.5]
[1759238864828,3.96079405,4174.3,4173.0,0.243]
[1759238865120,2.39628186,4173.2,4173.1,17.242]
[1759238865423,2.39618395,4173.4,4173.1,17.242]
[1759238865719,2.39621452,4173.3,4173.1,17.242]
[1759238865887,2.39612785,4173.4,4173.1,17.242]
[1759238866089,0.4513,4173.7,4173.1,17.242]
[1759238866311,2.39610697,4173.5,4173.2,0.7061]
[1759238866620,2.39607246,4173.5,4173.3,0.243]
[1759238866811,2.39607246,4173.5,4173.4,0.243]
[1759238867019,2.39607246,4173.5,4173.4,14.743]
[1759238867467,2.39607246,4173.5,4173.4,14.5]
[1759238869289,3.09087246,4173.5,4173.4,14.5]
[1759238871191,2.39607246,4173.5,4173.4,14.5]
[1759238873326,2.39607246,4173.5,4173.1,2.985]
[1759238873498,2.39624269,4173.2,4173.1,2.985]
[1759238873818,2.39624269,4173.2,4173.1,17.485]
[1759238874196,2.39624269,4173.2,4173.1,17.242]
[1759238874815,2.39620714,4173.3,4173.1,17.9481]
[1759238875016,2.39620714,4173.3,4173.1,17.7051]
[1759238875233,2.39620714,4173.3,4173.2,0.243]
[1759238875447,2.39620714,4173.3,4173.2,0.7061]
[1759238876634,2.39613865,4173.4,4173.2,0.7061]
[1759238876843,2.39612785,4173.4,4173.3,0.243]
[1759238878031,2.39624269,4173.2,4173.1,17.242]
[1759238878235,2.39619827,4173.3,4173.1,17.485]
[1759238878434,2.39619827,4173.3,4173.2,0.243]
[1759238880152,2.39624269,4173.2,4173.1,14.5]
[1759238880491,0.2445,4173.5,4173.1,14.5]
[1759238880492,0.001,4173.5,4173.1,25.17411312]
[1759238880768,0.001,4173.5,4173.2,0.73006242]
[1759238881056,0.001,4173.5,4173.3,2.742]
[1759238881427,0.001,4173.5,4173.4,0.7061]
[1759238882147,2.39612785,4173.4,4173.3,2.742]
[1759238882333,0.001,4173.5,4173.3,2.742]
[1759238882532,0.001,4173.5,4173.4,0.243]
[1759238882736,2.39707044,4173.5,4173.4,0.243]
[1759238882926,2.39624269,4173.2,4173.1,14.5]
[1759238883132,2.39624269,4173.2,4173.1,17.242]
[1759238883356,2.63974269,4173.2,4173.1,17.242]
[1759238883553,2.63974269,4173.2,4173.1,14.5]
[1759238883836,3.63986029,4173.2,4173.1,14.5]
[1759238884570,6.03986029,4173.2,4173.1,14.5]
[1759238885131,2.39652982,4172.7,4172.6,2.742]
[1759238885333,0.2435,4172.7,4172.5,2.742]
[1759238885528,2.6401397,4172.6,4172.5,2.742]
[1759238885771,2.6401397,4172.6,4172.5,17.242]
[1759238886071,3.0914397,4172.6,4172.5,14.5]
[1759238886364,3.64023101,4172.6,4172.5,14.5]
[1759238887150,2.94543101,4172.6,4172.5,14.5]
[1759238888031,1.24359131,4172.6,4172.0,2.742]
[1759238888259,2.39682387,4172.2,4172.0,2.985]
[1759238888479,2.39682387,4172.2,4172.1,14.5]
[1759238889133,2.39682387,4172.2,4172.1,14.743]
[1759238890883,0.12,4172.4,4172.1,14.743]
[1759238891039,5.142,4172.7,4172.1,14.5]
[1759238891241,2.3967017,4172.5,4172.2,0.7061]
[1759238891438,2.3967017,4172.5,4172.3,0.243]
[1759238891669,2.39670229,4172.4,4172.2,0.4631]
[1759238891875,2.39670229,4172.4,4172.3,14.5]
[1759238892165,2.39670229,4172.4,4172.3,14.743]
[1759238893864,2.39670229,4172.4,4172.3,14.5]
[1759238894033,3.82803227,4172.4,4172.3,14.5]
[1759238894865,3.12803227,4172.4,4172.3,14.5]
[1759238895067,2.39670229,4172.4,4172.3,14.5]
[1759238895474,2.63840229,4172.4,4172.3,14.5]
[1759238896277,2.39670229,4172.4,4172.3,14.5]
[1759238898287,2.63180229,4172.4,4172.3,14.5]
[1759238898447,2.39687447,4172.1,4172.0,2.742]
[1759238898850,2.39687447,4172.1,4172.0,17.4713]
[1759238899051,2.3968362,4172.2,4172.0,17.4713]
[1759238900598,0.121,4172.6,4172.1,0.6829]
[1759238900780,0.121,4172.6,4172.3,5.46551312]
[1759238901085,0.001,4172.6,4172.5,0.792]
[1759238901288,0.001,4172.6,4172.5,15.292]
[1759238901490,0.001,4172.6,4172.5,15.9749]
[1759238901791,0.001,4172.6,4172.5,17.06925275]
[1759238902005,0.001,4172.6,4172.5,19.46589744]
[1759238903089,0.001,4172.6,4172.5,17.06925275]
[1759238904294,0.001,4172.6,4172.5,22.53476587]
[1759238905269,0.001,4172.6,4172.5,24.93141056]
[1759238908975,0.001,4172.6,4172.5,25.02749476]
[1759238910004,0.001,4172.6,4172.5,27.76949476]
[1759238911213,0.001,4172.6,4172.5,27.88949476]
[1759238920283,0.001,4172.6,4172.5,22.06795007]
[1759238920486,0.001,4172.6,4172.5,27.10951056]
[1759238921437,0.001,4172.6,4172.5,24.71286587]
[1759238921585,0.001,4172.6,4172.5,27.10951056]
[1759238922023,0.001,4172.6,4172.5,27.33881056]
[1759238924730,0.001,4172.6,4172.5,24.94216587]
[1759238924933,0.001,4172.6,4172.5,27.34671056]
[1759238927439,0.001,4172.6,4172.5,27.80041056]
[1759238932023,0.001,4172.6,4172.5,27.34671056]
[1759238933521,0.001,4172.6,4172.5,27.80041056]
[1759238934343,0.001,4172.6,4172.5,28.20337663]
[1759238935862,0.001,4172.6,4172.5,28.65707663]
[1759238941441,0.001,4172.6,4172.5,28.88587663]
[1759238942878,0.001,4172.6,4172.5,31.28587663]
[1759238945174,0.001,4172.6,4172.5,28.09117663]
[1759238945377,0.001,4172.6,4172.5,31.28487663]
[1759238946951,0.001,4173.1,4173.0,3.18835753]
[1759238947182,0.001,4173.1,4173.0,12.80901544]
[1759238947450,0.001,4173.1,4173.0,13.16621544]
[1759238947658,0.001,4173.1,4173.0,27.89501544]
[1759238947988,0.001,4173.1,4173.0,28.34871544]
[1759238951418,0.001,4173.1,4173.0,30.74871544]
[1759238951597,0.001,4173.1,4173.0,23.73563625]
[1759238951785,0.7034,4173.1,4173.0,30.05781544]
[1759238952671,0.001,4173.1,4173.0,30.05781544]
[1759238952871,0.7021,4173.1,4173.0,18.81927872]
[1759238953065,0.7021,4173.1,4173.0,18.59047872]
[1759238953684,0.7021,4173.1,4173.0,18.032]
[1759238955911,0.7021,4173.1,4173.0,20.42835753]
[1759238956115,0.7021,4173.1,4173.0,18.032]
[1759238956909,0.001,4173.1,4173.0,21.61417919]
[1759238957112,0.6883,4173.1,4173.0,21.61417919]
[1759238957313,0.6883,4173.1,4173.0,15.292]
[1759238957615,0.6883,4173.1,4173.0,18.032]
[1759238959904,0.6883,4173.1,4173.0,18.031]
[1759238962420,3.08460011,4173.1,4173.0,14.5]
[1759238962622,0.99676001,4173.1,4173.0,17.239]
[1759238963389,0.6883,4173.1,4173.0,17.239]
[1759238964723,0.001,4173.1,4173.0,18.031]
[1759238964903,0.001,4173.1,4173.0,18.151]
[1759238965507,0.2293,4173.1,4173.0,18.151]
[1759238966225,0.6883,4173.1,4173.0,18.151]
[1759238966422,0.001,4173.1,4173.0,18.151]
[1759238968017,0.2293,4173.1,4173.0,18.151]
[1759238968218,0.001,4173.1,4173.0,18.151]
[1759238970618,0.001,4173.1,4173.0,18.3825]
[1759238971024,0.001,4173.1,4173.0,18.151]
[1759238971935,0.2293,4173.1,4173.0,18.151]
[1759238974542,0.6883,4173.1,4173.0,18.151]
[1759238974743,0.6883,4173.1,4173.0,15.412]
[1759238974929,0.6883,4173.1,4173.0,18.151]
[1759238975245,7.6783,4173.1,4173.0,18.151]
[1759238977439,10.07460011,4173.1,4173.0,18.151]
[1759238977937,7.6783,4173.1,4173.0,18.151]
[1759238980339,6.991,4173.1,4173.0,15.412]
[1759238980538,6.991,4173.1,4173.0,18.151]
[1759238980940,6.991,4173.1,4173.0,15.412]
[1759238981140,6.991,4173.1,4173.0,18.151]
[1759238981312,0.001,4173.1,4173.0,18.151]
[1759238981846,0.001,4173.1,4173.0,18.3825]
[1759238982224,0.001,4173.1,4173.0,18.3801]
[1759238983319,0.001,4173.1,4173.0,27.15282889]
[1759238983518,0.001,4173.1,4173.0,27.27282889]
[1759238984112,0.001,4173.1,4173.0,29.66918642]
[1759238984854,0.001,4173.1,4173.0,29.76525655]
[1759238989357,0.001,4173.1,4173.0,32.16525655]
[1759238990221,0.001,4173.1,4173.0,29.42625655]
[1759238990552,0.001,4173.1,4173.0,32.16425655]
[1759238994634,0.001,4173.5,4173.4,3.18812785]
[1759238994843,0.001,4173.5,4173.4,12.56711982]
[1759238995043,0.001,4173.5,4173.4,13.36361982]
[1759238995252,0.001,4173.5,4173.4,13.60001982]
[1759238995438,0.001,4173.5,4173.4,28.10001982]
[1759238996364,0.001,4173.5,4173.4,32.69983479]
[1759238998868,0.001,4173.5,4173.4,32.57983479]
[1759238999032,0.001,4173.5,4173.4,32.69983479]
[1759239000366,0.2364,4175.1,4175.0,0.792]
[1759239000668,2.39545232,4174.6,4174.5,2.737]
[1759239000870,2.39545232,4174.6,4173.4,15.17521278]
[1759239000871,0.91564523,4174.6,4174.3,0.12]
[1759239001055,0.12,4174.5,4174.2,2.737]
[1759239001235,0.12,4174.5,4174.3,5.46099708]
[1759239001236,0.6761,4174.5,4174.3,5.46099708]
[1759239001440,0.6761,4174.5,4174.2,2.737]
[1759239001441,0.12,4174.8,4174.4,17.237]
[1759239001667,2.39543908,4174.6,4174.5,2.737]
[1759239001869,0.72748208,4174.6,4174.4,14.5]
[1759239002051,0.6761,4174.5,4174.4,14.5]
[1759239002253,3.07159646,4174.5,4174.4,14.5]
[1759239003079,5.59159646,4174.5,4174.4,14.5]
[1759239003246,6.31219167,4174.5,4174.4,14.5]
[1759239003569,7.77815812,4174.5,4174.4,14.5]
[1759239003767,7.05756291,4174.5,4174.4,14.5]
[1759239005570,0.6761,4174.5,4174.4,17.237]
[1759239005940,0.2364,4174.8,4174.4,18.029]
[1759239006140,0.4397,4174.9,4174.7,0.792]
[1759239006362,0.2364,4175.0,4174.8,3.529]
[1759239006565,0.6761,4174.9,4174.6,0.12]
[1759239006767,2.70250561,4174.8,4174.7,2.737]
[1759239007077,3.3785557,4174.8,4174.7,17.237]
[1759239007264,0.98323138,4174.8,4174.7,17.237]
[1759239007576,0.6761,4174.8,4174.7,17.237]
[1759239007874,0.2364,4174.8,4174.7,17.237]
[1759239008181,0.6761,4174.8,4174.7,17.237]
[1759239008779,3.07142432,4174.8,4174.7,17.237]
[1759239009086,5.47142432,4174.8,4174.7,14.5]
[1759239009387,6.25818999,4174.8,4174.7,14.5]
[1759239010171,6.25818999,4174.8,4173.3,0.792]
[1759239010172,2.39608451,4173.5,4173.1,5.46099708]
[1759239010477,0.2364,4173.8,4173.2,2.737]
[1759239010683,0.26321868,4173.7,4173.6,6.25299708]
[1759239010889,2.39568393,4174.2,4173.3,5.46099708]
[1759239010890,0.2364,4174.1,4173.3,5.46099708]
[1759239011050,0.6761,4174.0,4173.5,0.792]
[1759239011378,0.6761,4173.9,4173.8,14.5]
[1759239011581,3.07194082,4173.9,4173.8,17.237]
[1759239011791,3.07194082,4173.9,4173.8,14.5]
[1759239012086,6.01870785,4173.9,4173.8,14.5]
[1759239012585,3.11638178,4174.1,4173.8,14.5]
[1759239012586,2.39576529,4174.1,4173.8,17.238]
[1759239012786,2.39584082,4173.9,4173.8,17.238]
[1759239012984,3.08584082,4173.9,4173.8,17.239]
[1759239013284,3.12055194,4174.6,4173.8,17.239]
[1759239013461,2.39581835,4174.0,4173.8,17.239]
[1759239013664,3.08584082,4173.9,4173.8,14.5]
[1759239014258,5.48584082,4173.9,4173.8,14.5]
[1759239015190,5.02434082,4173.9,4173.8,14.5]
[1759239015391,2.4,4173.9,4173.8,14.5]
[1759239015570,4.79584082,4173.9,4173.8,14.5]
[1759239015766,2.39570574,4174.2,4173.8,17.24]
[1759239016069,2.39553924,4174.5,4174.0,0.792]
[1759239016271,0.691,4175.0,4174.2,0.792]
[1759239016483,2.39540767,4174.7,4174.4,14.5]
[1759239016670,0.691,4175.0,4174.5,2.741]
[1759239016870,2.39537589,4174.8,4174.5,2.9867]
[1759239017076,2.4,4174.9,4174.5,2.9867]
[1759239017077,2.3953817,4174.7,4174.6,0.2457]
[1759239017271,2.3953817,4174.7,4174.6,14.5]
[1759239017798,2.6346817,4174.7,4174.6,14.5]
[1759239018288,3.62188657,4174.7,4174.6,14.5]
[1759239018488,6.02188657,4174.7,4174.6,14.5]
[1759239018888,6.14188657,4174.7,4174.6,14.5]
[1759239019578,8.88388657,4174.7,4174.6,14.5]
[1759239021070,2.39607044,4173.5,4173.4,0.912]
[1759239021270,0.2393,4173.5,4173.3,2.742]
[1759239021475,2.3963337,4173.1,4172.8,0.792]
[1759239021702,2.3963337,4173.1,4173.0,14.5]
[1759239021909,2.3963337,4173.1,4173.0,17.243]
[1759239023310,2.3961694,4173.4,4173.2,2.743]
[1759239023602,2.39618527,4173.3,4173.2,2.743]
[1759239023801,2.39637268,4173.0,4172.6,0.002]
[1759239024119,0.2393,4173.6,4172.8,0.792]
[1759239024325,2.39628657,4173.2,4172.9,2.743]
[1759239024497,2.39619855,4173.3,4172.9,2.743]
[1759239024687,2.4,4173.5,4172.9,2.743]
[1759239024887,2.39618527,4173.3,4173.2,14.5]
[1759239026505,3.07558527,4173.3,4173.2,14.5]
[1759239026705,3.84655953,4173.3,4173.2,14.5]
[1759239027007,2.39618527,4173.3,4173.2,14.5]
[1759239027210,3.07558527,4173.3,4173.2,14.5]
[1759239027395,2.39618527,4173.3,4173.2,14.5]
[1759239027808,2.39616668,4173.4,4173.2,14.5]
[1759239028004,0.4401,4174.0,4173.3,3.4199]
[1759239028005,2.39612019,4173.5,4173.3,3.4199]
[1759239028214,4.79589412,4173.9,4173.4,0.2329]
[1759239028414,2.39607044,4173.5,4173.4,0.2329]
[1759239028613,2.39607044,4173.5,4173.4,2.742]
[1759239028923,2.4,4173.7,4173.4,2.742]
[1759239029117,2.39607044,4173.5,4173.4,2.742]
[1759239029424,2.39615924,4173.4,4173.2,14.5]
[1759239029627,2.39615924,4173.4,4173.3,2.743]
[1759239029917,2.6393,4173.9,4173.3,2.743]
[1759239030220,2.39607875,4173.5,4173.3,2.743]
[1759239030522,2.4,4173.8,4173.2,14.5]
[1759239030721,2.39618527,4173.3,4173.2,14.5]
[1759239031027,2.39618527,4173.3,4173.2,17.242]
[1759239031192,2.63548527,4173.3,4173.2,14.5]
[1759239031389,3.07558527,4173.3,4173.2,14.5]
[1759239031590,3.19465494,4173.3,4173.2,14.5]
[1759239031792,2.63548527,4173.3,4173.2,14.5]
[1759239032223,0.2393,4173.3,4173.2,14.5]
[1759239032395,2.39618527,4173.3,4173.2,14.5]
[1759239033214,2.75531717,4173.6,4173.2,14.5]
[1759239033502,2.39618527,4173.3,4173.2,14.5]
[1759239033701,2.52,4173.6,4173.2,14.5]
[1759239033924,2.39600737,4173.7,4173.3,3.44286185]
[1759239034091,2.39607044,4173.5,4173.4,3.4189]
[1759239034298,2.51590238,4173.8,4173.4,3.4189]
[1759239034498,2.39606879,4173.6,4173.5,14.7329]
[1759239034820,2.39606879,4173.6,4173.5,14.5]
[1759239035128,5.96707567,4173.6,4173.5,14.5]
[1759239037009,2.39630011,4173.1,4173.0,0.002]
[1759239037209,4.91630011,4173.1,4173.0,0.002]
[1759239038516,4.91630011,4173.1,4173.0,0.2349]
[1759239038719,4.91630011,4173.1,4173.0,0.002]
[1759239039329,6.32694962,4173.1,4173.0,0.002]
[1759239040727,5.88684962,4173.1,4173.0,0.002]
[1759239041230,6.32694962,4173.1,4173.0,0.002]
[1759239042334,5.64754962,4173.1,4173.0,0.002]
[1759239042857,0.49160688,4173.6,4173.0,0.002]
[1759239043030,2.4,4173.6,4173.1,3.556963]
[1759239043217,2.51595916,4173.7,4173.2,0.7079]
[1759239043408,2.39605288,4173.6,4173.3,0.7079]
[1759239043738,0.12,4173.7,4173.4,0.7079]
[1759239043935,2.39601303,4173.6,4173.5,14.5]
[1759239044102,2.39601303,4173.6,4173.5,14.7486]
[1759239044728,2.39601303,4173.6,4173.5,0.2486]
[1759239044925,2.39611843,4173.5,4173.3,2.743]
[1759239045240,2.39611843,4173.5,4173.4,0.2486]
[1759239045537,2.39607044,4173.5,4173.4,0.2486]
[1759239045723,2.39607044,4173.5,4173.4,14.7486]
[1759239045904,2.39607044,4173.5,4173.4,14.5]
[1759239046107,3.36707329,4173.5,4173.4,14.5]
[1759239046332,0.73120285,4173.5,4173.4,14.5]
[1759239046543,2.52,4173.7,4173.4,14.5]
[1759239046745,2.39607044,4173.5,4173.4,14.9593]
[1759239046916,2.39607044,4173.5,4173.4,14.5]
[1759239047244,8.21587044,4173.5,4173.4,14.5]
[1759239047428,0.2398,4174.0,4173.0,2.747]
[1759239047608,0.437,4174.1,4173.1,1.4999]
[1759239047815,2.39601303,4173.6,4173.5,14.5]
[1759239048342,3.07281303,4173.6,4173.5,14.5]
[1759239048544,5.47281303,4173.6,4173.5,14.5]
[1759239049958,5.47281303,4173.6,4173.0,0.002]
[1759239049959,2.39630011,4173.1,4173.0,0.002]
[1759239050158,2.4,4173.1,4173.0,0.002]
[1759239050365,4.79630011,4173.1,4173.0,0.002]
[1759239050558,4.79630011,4173.1,4173.0,0.2506]
[1759239050772,2.4,4173.1,4173.0,0.2506]
[1759239051061,2.39625388,4173.2,4173.0,14.7506]
[1759239051228,2.39625388,4173.2,4173.1,0.2486]
[1759239051431,2.39625388,4173.2,4173.0,14.502]
[1759239051432,2.39630011,4173.1,4173.0,14.502]
[1759239054270,2.4,4173.2,4173.0,14.502]
[1759239054562,2.39630011,4173.1,4173.0,14.502]
[1759239054760,5.47310011,4173.1,4173.0,14.502]
[1759239055379,8.22010011,4173.1,4173.0,14.502]
[1759239055659,9.28173274,4173.1,4173.0,14.502]
[1759239055848,2.4,4173.0,4172.6,0.002]
[1759239056172,4.79652982,4172.7,4172.6,0.002]